Cogmind - Beta 14 @@@ ROGUE MODE // 2025.03.23 @ 19:47:28 Player: SelfCookedBird Result: Destroyed by G-47 Trooper with Particle Gun Performance ------------- Evolutions (0) 0 Regions Visited (1) 200 Robots Destroyed (7) 35 Value Destroyed (263) 263 Prototype IDs (0) 0 Alien Tech Used (0) 0 Bonus (0) 0 TOTAL SCORE: 498 Bonus ------- None Cogmind --------- Core Integrity 0/250 Matter 178/300 Energy 100/100 System Corruption 0% Temperature Cool (9) Movement Walking (400) Ox4 Location -10/Materials Parts ------- > --- POWER (1) -------- (None) > --- PROPULSION (2) --- Aluminum Leg > --- UTILITY (2) ------ High-capacity Storage Unit > --- WEAPON (2) ------- Assault Rifle > --- INVENTORY (20) --- Ion Engine Ion Engine Ion Engine High-capacity Storage Unit Medium Matter Pod (0) Medium Matter Pod (0) Medium Matter Pod (0) Beam Cannon Light Assault Rifle Mining Claw Mining Claw Mining Claw Mining Claw Mining Claw Mining Claw Peak State ------------ > --- POWER ------------ Ion Engine > --- PROPULSION ------- Wheel Wheel > --- UTILITY ---------- High-capacity Storage Unit Large Battery > --- WEAPON ----------- Assault Rifle Grenade Launcher > --- INVENTORY -------- Ion Engine Aluminum Leg Aluminum Leg Light Assault Rifle Mining Claw Mining Claw Mining Claw Mining Claw Mining Claw Mining Claw [Rating: 8] Favorites ----------- Power Ion Engine Engine Ion Engine Propulsion Aluminum Leg Leg Aluminum Leg Wheel Wheel Utility Large Battery Storage Large Battery Weapon Assault Rifle Energy Gun Small Laser Ballistic Gun Assault Rifle Launcher Grenade Launcher Build | -11 -10 ------- Run | Yrd Mat Slots Evolved . | . . Power . | . . Propulsion . | . . Utility . | . . Weapon . | . . Parts Attached 15 | 7 8 Power 4 | 2 2 Engine 4 | 2 2 Core . | . . Reactor . | . . Propulsion 5 | 2 3 Treads . | . . Leg 2 | . 2 Wheel 3 | 2 1 Hover . | . . Flight . | . . Utility 2 | . 2 Device . | . . Storage 2 | . 2 Processor . | . . Hackware . | . . Protection . | . . Artifact . | . . Weapon 4 | 3 1 Energy Gun 1 | 1 . Energy Cannon . | . . Ballistic Gun 2 | 2 . Ballistic Cannon . | . . Launcher 1 | . 1 Special Weapon . | . . Impact Weapon . | . . Slashing Weapon . | . . Piercing Weapon . | . . Special Melee Weapon . | . . Unidentified Prototypes . | . . Parts Lost 4 | . 4 Power 1 | . 1 Propulsion 1 | . 1 Utility 1 | . 1 Weapon 1 | . 1 Highest Loss Streak 4 | . 4 To Critical Strikes . | . . Average Slot Usage (%) 96 | . 96 Engine 13 | . 13 Leg 23 | . 23 Wheel 3 | . 3 Storage 26 | . 26 Ballistic Gun 14 | . 14 Launcher 12 | . 12 Peak Build Rating 8 | 5 8 Average Rating 7 | 4 7 On Entrance 2 | . 5 Naked Turns . | . . Heaviest Build 53 | 9 53 Greatest Support 20 | 20 20 Greatest Overweight (x) 5 | . 5 Average Overweight (x) 1 | . 1 Largest Inventory Capacity 20 | 5 20 Average Capacity 16 | 5 19 Most Carried 15 | 5 15 Average Carried 11 | 3 12 Final Capacity 20 | 5 20 Final Carried 15 | 5 15 Class Distribution -------------------- 100% | Mutant Dominant Class ---------------- Mutant | -10/Materials Resources | -11 -10 ----------- Run | Yrd Mat Matter Collected 336 | 304 32 Remotely . | . . Salvage Created 280 | 40 240 Parts 17 | 2 15 Haulers Intercepted . | . . Recyclers Shooed . | . . Parts Field Recycled . | . . Retrieved Matter . | . . Parts Self-Destructed . | . . Prevented . | . . Kills | -11 -10 ------- Run | Yrd Mat Combat Hostiles Destroyed 6 | 1 5 Guns 2 | 1 1 AOE 4 | . 4 Classes Destroyed 2 | 1 1 Recycler 1 | . 1 Grunt 6 | 1 5 Best Kill Streak 2 | 1 2 Combat Bots Only 2 | 1 2 Max Kills in Single Turn 2 | 1 2 Gunslinging . | . . Exploded 1 | . 1 Melee . | . . Uniques/NPCs Destroyed . | . . Combat | -11 -10 -------- Run | Yrd Mat Hostile Shots Fired 85 | 9 76 Missed 28 | 4 24 Damage Taken 762 | 53 709 Core 258 | 10 248 Absorbed by Shields . | . . Regen/Repaired (Parts) 35 | . 35 Core Remaining (%) 96 | 96 . Volleys Fired 31 | 6 25 Largest 2 | 2 2 Hottest 50 | 40 50 Shots Fired 42 | 12 30 Gun 37 | 12 25 Cannon . | . . Launcher 5 | . 5 Special . | . . Kinetic 37 | 12 25 Thermal . | . . Explosive 5 | . 5 Electromagnetic . | . . Robot Hit Streak 6 | 6 3 Robot Miss Streak 6 | 1 6 Penetration Max . | . . Secondary Targets . | . . Shots Hit Robots 23 | 10 13 Core Hits 13 | 2 11 Critical Kills 1 | 1 . Critical Parts Destroyed . | . . Critical Strikes 1 | 1 . Destroy 1 | 1 . Melee Attacks . | . . Impact . | . . Slashing . | . . Piercing . | . . Sneak Attacks . | . . Combat Hostiles . | . . Follow-up Attacks . | . . Damage Inflicted 671 | 123 548 Guns 274 | 123 151 Cannons . | . . Explosions 377 | . 377 Melee . | . . Ramming 20 | . 20 Kinetic 274 | 123 151 Thermal 98 | . 98 Explosive 279 | . 279 Electromagnetic . | . . Impact . | . . Slashing . | . . Piercing . | . . Highest Corruption . | . . Average Corruption . | . . Corruption Purged . | . . Corruption Blocked . | . . Overload Shots . | . . Overflow Damage . | . . Projectiles . | . . Explosions . | . . Melee . | . . Knockbacks 1 | . 1 Impact 1 | . 1 Kinetic . | . . Secondary . | . . Self-Inflicted Damage . | . . Shots . | . . Rammed . | . . Targets Rammed 8 | . 8 Kicked 8 | . 8 Crushed . | . . Highest Temperature 17 | . 17 Average Temperature 6 | . 6 Received Heat Transfer 531 | 30 501 Siege Activations . | . . Robots Corrupted . | . . Combat Hostiles . | . . Parts Fried . | . . Impact Corruptions . | . . Robots Melted . | . . Combat Hostiles . | . . Parts Melted . | . . Heat Transferred 50 | . 50 Parts Sabotaged . | . . Parts Stolen . | . . Parts Stripped . | . . Power Chain Reactions . | . . Alert | -11 -10 ------- Run | Yrd Mat Peak Influence 177 | 20 177 Initial 13 | . 13 Average 67 | 11 78 Maximum Alert Level . | . . Low Security (%) 100 | 100 100 Level 1 . | . . Level 2 . | . . Level 3 . | . . Level 4 . | . . Level 5 . | . . High Security . | . . Max Security . | . . Squads Dispatched 1 | . 1 Investigation . | . . Extermination . | . . Reinforcement 1 | . 1 Assault . | . . Garrison . | . . Intercept . | . . Searches Triggered . | . . Construction Impeded . | . . Haulers Reinforced . | . . Active Scanning Responses . | . . Cargo Convoy Interrupts . | . . Stealth | -11 -10 --------- Run | Yrd Mat Distress Signals . | . . Communications Jammed . | . . Distress Signals . | . . Times Spotted 9 | 1 8 Peak Tracking Total 3 | 1 3 Tactical Retreats . | . . Traps | -11 -10 ------- Run | Yrd Mat Traps Triggered . | . . Indirectly . | . . Trap Hack Attempts . | . . Triggered . | . . Disarmed . | . . Reprogrammed . | . . Reused . | . . Traps Extracted . | . . Installed . | . . Triggered . | . . Machines | -11 -10 ---------- Run | Yrd Mat Machines Disabled 4 | . 4 Max in Single Turn 4 | . 4 Machines Repaired . | . . Machines Dismantled . | . . Machines Sabotaged . | . . Overloaded Fab Kills . | . . Hacking | -11 -10 --------- Run | Yrd Mat Machines Accessed 1 | . 1 Terminals . | . . Fabricators . | . . Repair Stations 1 | . 1 Recycling Units . | . . Scanalyzers . | . . Garrison Access . | . . Total Hacks 3 | . 3 Successful 2 | . 2 Failed 1 | . 1 Catastrophic . | . . Database Lockouts . | . . Manual . | . . Terminals . | . . Fabricators . | . . Repair Stations 3 | . 3 Recycling Units . | . . Scanalyzers . | . . Garrison Access . | . . Terminal Hacks . | . . Fabricator Hacks . | . . Repair Station Hacks 2 | . 2 Scan Component 1 | . 1 Repair 1 | . 1 Recycling Unit Hacks . | . . Scanalyzer . | . . Garrison Access Hacks . | . . Unauthorized Hacks . | . . Terminals . | . . Fabricators . | . . Repair Stations . | . . Recycling Units . | . . Scanalyzers . | . . Garrison Access . | . . Data Cores Recovered . | . . Used . | . . Hacking Detections 1 | . 1 Full Trace Events 1 | . 1 Feedback Events . | . . Feedback Blocked . | . . Robot Schematics Acquired . | . . Robots Built . | . . Authchips . | . . Time . | . . Total Robot Build Rating . | . . Part Schematics Acquired . | . . Parts Built . | . . Authchips . | . . Time . | . . Total Part Build Rating . | . . Parts Repaired 1 | . 1 Time 26 | . 26 Parts Recycled . | . . Recycled Matter . | . . Retrieved Matter . | . . Retrieved Components . | . . Parts Scanalyzed . | . . Part Schematics Acquired . | . . Parts Damaged . | . . Bothacking | -11 -10 ------------ Run | Yrd Mat Used RIF Installer . | . . Robots Hacked . | . . Non-combat . | . . Combat . | . . Robot Hacks Applied . | . . Relay Couplers Released . | . . Fabnet Peak Effective % . | . . Robots Rewired . | . . Allies Hacked . | . . Hacks Repelled . | . . Allies | -11 -10 -------- Run | Yrd Mat Total Allies . | . . Largest Group . | . . Highest-Rated Group . | . . Highest-Rated Ally . | . . Total Orders . | . . Ally Attacks . | . . Total Damage . | . . Kills . | . . Allies Corrupted . | . . Allies Melted . | . . Intel | -11 -10 ------- Run | Yrd Mat Robot Analysis Total . | . . Derelict Logs Recovered . | . . Drone Launches . | . . Drone Recoveries . | . . Exploration | -11 -10 ------------- Run | Yrd Mat Turns Passed 1162 | 198 964 Spaces Moved 530 | 138 392 Core 26 | 26 . Treads . | . . Legs 290 | . 290 Wheels 214 | 112 102 Hover . | . . Flight . | . . Fastest Speed 50 | 50 80 Average Speed 180 | 74 217 Slowest Speed 400 | 80 400 Overloaded Moves . | . . Propulsion Burnouts . | . . Robots Hopped . | . . Cave-ins Triggered . | . . Exploration Rate (%) 26 | 9 43 Regions Visited 1 Branch Regions . Pre-discovered Areas . | . . Known Exits Taken . | . . Unknown Exits Taken 1 | 1 . Scrap Searched . | . . Spaces Dug . | . . Terrain Destroyed 88 | . 88 Melee . | . . Projectile . | . . AOE 88 | . 88 Terrain Rammed . | . . Walls Destroyed . | . . Machines Disabled . | . . Actions | -11 -10 --------- Run | Yrd Mat Total 674 | 220 454 Wait 60 | 60 . Move 529 | 137 392 Hop . | . . Pick Up 25 | 10 15 Fast Attach 2 | . 2 Attach 9 | 5 4 Detach 2 | . 2 Swap 4 | 2 2 Drop 4 | . 4 Fire 31 | 6 25 Melee . | . . Ram . | . . Kick 8 | . 8 Crush . | . . Escape Stasis . | . . Rewire . | . . Trap . | . . Miscellaneous . | . . Route ------- -11/Scrapyard -10/Materials (discovered 2 exits: [*Mat] / [*Min]) History --------- Turn | Location | Event 2 | -11/Scrapyard | Met Revision 17 59 | -11/Scrapyard | Discovered new exit (range 8) 199 | -11/Scrapyard | Entered Materials 317 | -10/Materials | Build established: Mutant 342 | -10/Materials | Repaired Wheel 452 | -10/Materials | Discovered new exit (range 9) 907 | -10/Materials | Discovered new exit (range 15) 1110 | -10/Materials | Core integrity fell below 50% 1146 | -10/Materials | Core integrity fell below 20% 1163 | -10/Materials | Destroyed by G-47 Trooper with Particle Gun Last Messages --------------- K-01 Serf collects debris. Kicked G-47 Trooper out of the way. K-01 Serf collects debris. U-05 Engineer builds a Wall. R-06 Scavenger collects Lgt. Treads. U-05 Engineer builds a Door. K-01 Serf collects debris. Kicked G-47 Trooper out of the way. U-05 Engineer builds a Wall. R-06 Scavenger collects Lrg. Matter Pod. Kicked G-47 Trooper. U-05 Engineer builds a Wall. R-06 Scavenger collects Power Shielding. Kicked G-47 Trooper. U-05 Engineer destroyed. K-01 Serf collects debris. Kicked G-47 Trooper. Lrg. Battery destroyed. K-01 Serf collects debris. [Achievement: First Step to Greatness] Map ----- +----------------------------------------------------+ | ???????????????????????????????# # # | | ???????????????????????????????# # ## | | ???????????????????????????????# # # | | ???????????????????????????????# ###+#### | | ???????????????????????????????# # | | ???????????????????????????????# # | | ???????????????????????????????# + | | ???????????????????????????????# ###+### | | ???????????????????????????????# | | ???????????????????????????????# | | ???????????????????????????????# | | ???????????????????????##+#????# | | ??????????????????????? #???# | | ???????????????????????# #???# | | ???????????????????????# #???# """ """ | | ???????????????????????# #???# """"""""" | | ??????????????????+###?# #???# """"" " | | ??????????????????? ?# #???# | | ??????????????????? #^^^#???# | | ???????????????????? + #???## | | ????????????????????? # #????# | | ????????????????????? # ####?# ############# | | ?????????????????????? #!! ###### #???????????# | | ????????????????######## g !### #???????????# | | ????????????????# ! = +[ *[ !## #???????????# | | ????????????????# #!@k=kk!## #??????????## | | ????????????????# """ # !! !## #??????????# | | ????????????????# """ # ! !=|!## #??????????# " | | ????????????????#= """ # k### #??????????# T | | ????????????????? # ####?# #???? #?# | | ????????????????######?# #????# #??? #?# | | ??????????????????????## ##???# #??? #?### | | ??????????????????????# u##### #?? #???? | | ??????????????????????# # #???? | | ??????????????????????# + #???? | | ??????????????????????# # #???? | | ??????????????????????# ##### # #???? | | ??????????????????????#######???# # #???? | | ???????????????????????????????## ##########???? | | ???????????????????????????????## # #?????? | | ???????????????????????????????## # """ #?????? | | ???????????????????????????????## # """ #?????? | | ???????????????????????????###### # """ #?????? | | ???????????????????????????# # # #?????? | | ???????????????????????????# ""# + """ #?????? | | ???????????????????????????# T"# # """ #?????? | | ???????????????????????????# ""# # """ #?????? | | ???????????????????????????# # # #?????? | | ???????????????????????????# # # """ #?????? | | ???????????????????????????# # # "Y #?????? | +----------------------------------------------------+ Best States ------------- Heat Dissipation 25 Energy Generation 10 Energy Capacity 450 Matter Stores 300 Matter Capacity 300 Sight Range 16 Terrain Scan Density 10 Evasion (%) 50 Item Schematics ----------------- None Robot Schematics ------------------ None Fabricated ------------ Nothing Alien Tech Used ----------------- None Achievements -------------- First Step to Greatness Part-time Mechanic Storm Trooper Uninvited Guest Challenges ------------ None Game ------ Seed AlertDimensionalStabilizer Manual? 0 Play Time 00:35:09 Cumulative 0.5 hours Start 2025.03.23 @ 19:05:18 End 2025.03.23 @ 19:47:28 Sessions 1 Manual Loads 0 Difficulty Rogue Special Mode None Game No. 2 Rogue 2 Adventurer 0 Explorer 0 Win Type - Total 0 Types 0/0/0/0/0/0/0/0/0 Lore% 0 Gallery% 0 Achievement% 1 Wizard Run 0 Options --------- Layout 1 ASCII 1 Keyboard 1 Movement Arrows Keybinds 0 Fullscreen 2 Font 24/Crisp Map View 50x35 Zoom Use 0% Tactical HUD 0 Map Filters NONE Filters NONE Steam 1 RUN: fabd9106-de9f-4ee7-97df-bdfa2924a3b5